Cogmind - Beta 12 @@@ ROGUE MODE // 2023.09.20 @ 23:31:30 // Winter2019/RPGLIKE Player: 0Z-4NL Result: Self-destructed Performance ------------- Evolutions (5) 2500 Regions Visited (10) 2000 Robots Destroyed (251) 1255 Value Destroyed (13175) 13175 Prototype IDs (26) 520 Alien Tech Used (0) 0 Bonus (4401) 4401 TOTAL SCORE: 23851 Bonus ------- High Alert Combat Kills 3396 Follower Combat Kills 1005 Entered Garrisons 600 Friendly Fire -600 Cogmind --------- Core Integrity 318/600 Matter 233/300 Energy 46/795 System Corruption 1% Temperature Cool (0) Movement Rolling (135) Ox3 Location -5/Factory Parts ------- > --- POWER (3) -------- Neutrino Core Heavy Antimatter Reactor Graviton Reactor > --- PROPULSION (3) --- Armored Wheel Armored Wheel Armored Wheel > --- UTILITY (9) ------ Advanced Terrain Scanner Improved Particle Charger Transmission Jammer Heavy Insulated Plating Focal Shield Thermal Shield Force Field > --- WEAPON (4) ------- Neutron Cannon Cooled Phase Cannon Improved KE Penetrator Heavy Flak Cannon > --- INVENTORY (4) ---- Advanced Hacking Suite Advanced System Restoration Module Improved Remote Datajack Power Sword Peak State ------------ > --- POWER ------------ Neutrino Core Heavy Antimatter Reactor Graviton Reactor > --- PROPULSION ------- Armored Wheel Armored Wheel Armored Wheel > --- UTILITY ---------- Advanced Signal Interpreter Advanced Terrain Scanner Improved Particle Charger Transmission Jammer Heavy Insulated Plating Focal Shield Force Field Advanced System Restoration Module > --- WEAPON ----------- Wave Gun Neutron Cannon Cooled Phase Cannon Improved KE Penetrator > --- INVENTORY -------- Weapon Cycler Thermal Shield Advanced Hacking Suite Power Sword [Rating: 104] Favorites ----------- Power Heavy Ion Engine Engine Heavy Ion Engine Power Core Nuclear Core Reactor Graviton Reactor Propulsion Armored Wheel Leg Aluminum Leg Wheel Armored Wheel Flight Unit Surge Thruster Utility Improved Terrain Scanner Device Improved Terrain Scanner Processor Improved Targeting Computer Protection Hardened Medium Armor Plating Weapon Advanced Beam Rifle Energy Gun Advanced Beam Rifle Energy Cannon Advanced Beam Cannon Ballistic Gun Enhanced Autogun Ballistic Cannon Heavy Flak Cannon Launcher Mini Grenade Launcher Impact Weapon Mace Build | -11 -10 -9 -8 -8 -8 -8 -8 -6 -6 -5 ------- Run | Jun Mat Mat Mat Gar Sto Gar Rec Fac Gar Fac Slots Evolved 15 | 2 2 3 1 . 1 2 . 3 . 1 Power 2 | . . 1 . . . 1 . . . . Propulsion 2 | 1 . . . . . 1 . . . . Utility 8 | . 1 2 1 . . . . 3 . 1 Weapon 3 | 1 1 . . . 1 . . . . . Parts Attached 140 | 4 6 19 10 6 20 18 2 27 9 19 Power 18 | . . 2 2 2 2 2 . 4 1 3 Engine 8 | . . 2 2 . 2 1 . 1 . . Core 6 | . . . . 2 . 1 . 1 . 2 Reactor 4 | . . . . . . . . 2 1 1 Propulsion 10 | 2 . . 1 . 2 2 . 1 2 . Treads . | . . . . . . . . . . . Leg . | . . . . . . . . . . . Wheel 9 | 2 . . 1 . 2 2 . 1 1 . Hover . | . . . . . . . . . . . Flight 1 | . . . . . . . . . 1 . Utility 48 | 1 4 7 3 1 3 . . 11 4 14 Device 34 | 1 2 5 . . 2 . . 8 3 13 Storage . | . . . . . . . . . . . Processor 3 | . . . 2 . . . . . . 1 Hackware . | . . . . . . . . . . . Protection 11 | . 2 2 1 1 1 . . 3 1 . Artifact . | . . . . . . . . . . . Weapon 64 | 1 2 10 4 3 13 14 2 11 2 2 Energy Gun 23 | . 2 1 . . 5 7 2 5 1 . Energy Cannon 7 | . . 2 1 . 1 . . 3 . . Ballistic Gun 19 | 1 . 5 2 1 5 . . 3 1 1 Ballistic Cannon 1 | . . . . . . . . . . 1 Launcher 4 | . . 1 . . . 3 . . . . Special Weapon . | . . . . . . . . . . . Impact Weapon 10 | . . 1 1 2 2 4 . . . . Slashing Weapon . | . . . . . . . . . . . Piercing Weapon . | . . . . . . . . . . . Special Melee Weapon . | . . . . . . . . . . . Unidentified Prototypes 13 | . . 2 . . 3 . . 5 1 2 Parts Lost 1 | . . 1 . . . . . . . . Power . | . . . . . . . . . . . Propulsion . | . . . . . . . . . . . Utility 1 | . . 1 . . . . . . . . Weapon . | . . . . . . . . . . . Highest Loss Streak 1 | . . 1 . . . . . . . . To Critical Strikes . | . . . . . . . . . . . Average Slot Usage (%) 97 | . 100 99 99 100 99 99 100 96 93 93 Engine 10 | . 13 14 17 4 12 17 20 14 . . Core 3 | . . . . 11 2 2 . 2 5 5 Reactor 2 | . . . . . . . . . 11 10 Wheel 17 | . 27 22 17 16 15 17 20 16 15 15 Device 25 | . 13 21 26 25 23 20 20 30 32 31 Processor 3 | . . . 3 8 7 6 6 2 . 3 Protection 6 | . 7 6 8 8 7 6 6 5 4 5 Energy Gun 10 | . 16 8 . . 12 19 20 17 5 4 Energy Cannon 7 | . . 11 17 16 5 . . . 13 10 Ballistic Gun 7 | . 19 13 8 6 8 6 6 4 2 5 Naked Turns . | . . . . . . . . . . . Heaviest Build 112 | 10 21 33 37 40 46 50 50 105 105 112 Greatest Support 36 | 26 26 26 32 32 32 36 36 36 36 36 Greatest Overweight (x) 4 | . . 1 1 1 1 2 1 2 4 3 Average Overweight (x) 1 | . . . 1 1 1 1 1 1 2 2 Largest Inventory Capacity 4 | . 1 2 2 2 2 3 3 3 3 4 Average Capacity 2 | . . 1 2 2 2 2 3 3 3 3 Most Carried 4 | . 1 2 2 2 2 3 3 3 3 4 Average Carried 2 | . . 1 2 2 1 2 2 2 2 3 Final Capacity 4 | . 1 2 2 2 2 3 3 3 3 4 Final Carried 4 | . 1 2 2 2 2 3 3 2 3 4 Class Distribution -------------------- 30% | Hacker-Gunner 29% | Hacker-Mutant 20% | Hacker-Tank 8% | Gunner 6% | Skirmisher Dominant Class ---------------- Gunner | -10/Materials Gunner | -9/Materials Hacker-Gunner | -8/Materials Hacker-Gunner | -8/Garrison Hacker-Gunner | -8/Storage Hacker-Mutant | -8/Garrison Hacker-Gunner | -8/Recycling Hacker-Mutant | -6/Factory Hacker-Tank | -6/Garrison Hacker-Tank | -5/Factory Resources | -11 -10 -9 -8 -8 -8 -8 -8 -6 -6 -5 ----------- Run | Jun Mat Mat Mat Gar Sto Gar Rec Fac Gar Fac Matter Collected 3237 | 276 228 431 160 264 293 472 42 525 185 361 Remotely . | . . . . . . . . . . . Salvage Created 9935 | 101 431 1719 544 901 645 1286 134 2328 1249 597 Parts 540 | 1 29 96 29 38 38 72 3 104 63 67 Haulers Intercepted 11 | . 1 6 1 . 1 . . 1 . 1 Recyclers Shooed 1 | . . . 1 . . . . . . . Parts Field Recycled . | . . . . . . . . . . . Retrieved Matter . | . . . . . . . . . . . Parts Self-Destructed . | . . . . . . . . . . . Prevented . | . . . . . . . . . . . Kills | -11 -10 -9 -8 -8 -8 -8 -8 -6 -6 -5 ------- Run | Jun Mat Mat Mat Gar Sto Gar Rec Fac Gar Fac Combat Hostiles Destroyed 204 | . 10 32 11 22 13 34 2 31 29 20 Melee 1 | . . . . . 1 . . . . . Guns 102 | . 10 17 1 4 8 23 2 28 7 2 Cannons 73 | . . 10 8 16 4 . . . 19 16 AOE 17 | . . 3 . . . 8 . 1 3 2 Classes Destroyed 19 | 2 4 3 1 3 1 . . 2 2 1 Worker 7 | . . 5 1 . . . . . . 1 Builder 6 | . . . . . . . . 2 . 4 Tunneler 1 | 1 . . . . . . . . . . Hauler 11 | . 1 6 1 . 1 . . 1 . 1 Recycler 6 | 1 . 1 . . 1 . 1 1 . 1 Mechanic 1 | . . . . . . . . 1 . . Operator 2 | . . . . . 1 . . . . 1 Watcher 11 | . 3 4 1 . 1 . . 2 . . Swarmer 28 | . 3 10 . . . 7 . . 4 4 Cutter 4 | . . . . . . . . . 4 . Grunt 92 | . 7 11 7 13 8 13 . 11 13 9 Brawler 5 | . . 2 . 1 . 2 . . . . Duelist 10 | . . . 2 1 2 1 . 3 . 1 Protector 1 | . . . . . . . . . . 1 Sentry 28 | . . 9 2 2 2 3 2 5 3 . Specialist 5 | . . . . 2 . . . 2 . 1 Hunter 17 | . . . . 2 1 4 . 8 2 . Programmer 15 | . . . . 1 . 4 . 4 2 4 Behemoth 1 | . . . . . . . . . 1 . Best Kill Streak 14 | 1 4 7 8 3 3 11 1 14 7 8 Combat Bots Only 13 | . 3 6 7 3 2 11 1 13 7 5 Max Kills in Single Turn 4 | 1 2 3 2 1 2 3 1 3 2 4 Gunslinging 1 | . 1 . . . 1 1 . . . . Exploded 3 | . . 2 . . . 3 . 1 2 1 Melee 1 | . . . . . 1 . . . . . Uniques/NPCs Destroyed . | . . . . . . . . . . . Combat | -11 -10 -9 -8 -8 -8 -8 -8 -6 -6 -5 -------- Run | Jun Mat Mat Mat Gar Sto Gar Rec Fac Gar Fac Damage Taken 5960 | . 399 668 326 915 244 668 21 1112 461 1146 Core 4077 | . 299 472 249 677 158 468 18 742 251 743 Absorbed by Shields 2781 | . . 82 122 351 90 258 8 502 490 878 Redirected to Core 3380 | . 220 405 194 537 148 358 8 642 211 657 Core Remaining (%) 90 | 100 90 67 . . . . 97 . 100 . Volleys Fired 522 | 6 38 59 31 58 29 69 4 98 69 61 Largest 4 | 2 3 3 3 3 4 4 4 4 4 4 Hottest 285 | 40 132 159 159 151 212 212 212 275 285 246 Shots Fired 1483 | 12 96 171 92 156 91 197 16 265 205 182 Gun 964 | 12 96 105 30 53 61 192 16 265 63 71 Cannon 512 | . . 64 62 103 30 . . . 142 111 Launcher 7 | . . 2 . . . 5 . . . . Special . | . . . . . . . . . . . Kinetic 421 | 12 56 71 30 53 27 47 4 56 16 49 Thermal 1028 | . 40 98 62 103 64 145 12 182 189 133 Explosive 7 | . . 2 . . . 5 . . . . Electromagnetic 27 | . . . . . . . . 27 . . Robot Hit Streak 26 | 5 15 26 18 17 20 22 9 23 16 17 Robot Miss Streak 4 | 1 3 2 2 2 4 2 . 4 2 3 Penetration Max 3 | . . . . . . . . 3 . 1 Secondary Targets 23 | . 3 2 . . 3 8 . 7 . . Max Gunslinging Chain 2 | . 1 1 . . 2 1 . 1 . . Shots Hit Robots 925 | 9 67 116 68 104 62 130 8 173 98 90 Core Hits 421 | 3 22 63 23 41 24 57 3 96 39 50 Critical Kills 12 | . . 2 2 2 . . . 6 . . Critical Parts Destroyed 13 | . . . . . . . . 12 . 1 Critical Strikes 56 | . 1 4 2 2 4 11 2 26 2 2 Burn 28 | . 1 2 . . 4 11 2 5 2 1 Meltdown 6 | . . 2 2 2 . . . . . . Destroy 21 | . . . . . . . . 20 . 1 Corrupt 1 | . . . . . . . . 1 . . Melee Attacks 38 | . . 1 2 6 6 23 . . . . Impact 38 | . . 1 2 6 6 23 . . . . Slashing . | . . . . . . . . . . . Piercing . | . . . . . . . . . . . Sneak Attacks 2 | . . . . . 2 . . . . . Combat Hostiles . | . . . . . . . . . . . Follow-up Attacks . | . . . . . . . . . . . Damage Inflicted 27028 | 111 904 2484 1385 2154 1559 3406 208 5234 4775 4808 Guns 14303 | 111 904 1202 399 612 912 3040 208 4586 1103 1226 Cannons 10487 | . . 948 986 1542 504 . . . 3420 3087 Explosions 2095 | . . 334 . . . 366 . 648 252 495 Melee 143 | . . . . . 143 . . . . . Ramming . | . . . . . . . . . . . Kinetic 5195 | 111 479 829 399 612 329 553 19 626 260 978 Thermal 20027 | . 425 1321 986 1542 1087 2487 189 3645 4515 3830 Explosive 1130 | . . 334 . . . 366 . 430 . . Electromagnetic 533 | . . . . . . . . 533 . . Impact 143 | . . . . . 143 . . . . . Slashing . | . . . . . . . . . . . Piercing . | . . . . . . . . . . . Highest Corruption 5 | . . 5 . 1 1 2 2 1 3 1 Average Corruption 1 | . . 5 . 1 1 1 2 1 2 1 Corruption Purged 1 | . . . . . . . . . . 1 Corruption Blocked . | . . . . . . . . . . . Effects 71 | . . 5 . 10 5 25 6 2 17 1 Message Errors 17 | . . 2 . 1 1 8 2 . 3 . Matter Fused 13 | . . 1 . 2 . 7 1 . 2 . Heat Flow Errors 9 | . . . . . 2 2 2 . 3 . Energy Discharges 8 | . . . . 1 1 1 . 2 3 . Parts Rejected 1 | . . . . . . . . . 1 . Parts Fused 1 | . . . . . . 1 . . . . Data Loss (minor) 9 | . . 1 . 2 . 3 1 . 2 . Data Loss (major) 3 | . . 1 . 2 . . . . . . Misfires 5 | . . . . 1 . 3 . . . 1 Alerts 1 | . . . . . . . . . 1 . Weapon Failures 4 | . . . . 1 1 . . . 2 . Overload Shots . | . . . . . . . . . . . Overflow Damage 675 | . . 29 2 . 38 2 . 119 200 285 Projectiles 352 | . . 2 2 . 6 . . . 200 142 Explosions 291 | . . 27 . . . 2 . 119 . 143 Melee 32 | . . . . . 32 . . . . . Knockbacks 5 | . . . . . 1 . . . . 4 Impact 1 | . . . . . 1 . . . . . Kinetic 4 | . . . . . . . . . . 4 Secondary . | . . . . . . . . . . . Self-Inflicted Damage 329 | . . . . . . . . 126 31 172 Shots 6 | . . . . . . . . 2 1 3 Rammed . | . . . . . . . . . . . Targets Rammed . | . . . . . . . . . . . Kicked . | . . . . . . . . . . . Crushed . | . . . . . . . . . . . Highest Temperature 353 | . 264 293 304 183 138 348 240 353 264 114 Average Temperature 75 | . 73 84 117 45 43 108 81 78 59 46 Received Heat Transfer 1454 | . 198 219 108 268 78 138 6 258 119 62 Effects 7 | . . 2 . . . 1 . 4 . . Shutdowns 2 | . . . . . . 1 . 1 . . Energy Bleed 2 | . . 1 . . . . . 1 . . Interference 3 | . . 1 . . . . . 2 . . Siege Activations . | . . . . . . . . . . . Robots Corrupted . | . . . . . . . . . . . Combat Hostiles . | . . . . . . . . . . . Parts Fried 1 | . . . . . . . . 1 . . Impact Corruptions 2 | . . . . . 2 . . . . . Robots Melted 12 | . . 2 2 2 . 4 . 2 . . Combat Hostiles 11 | . . 2 2 2 . 3 . 2 . . Parts Melted 51 | . 3 5 3 3 6 12 3 11 2 3 Heat Transferred 24444 | . 1147 2627 1665 2442 1924 4381 407 5300 2582 1969 Parts Sabotaged 2 | . . . . . . . . 2 . . Parts Stolen . | . . . . . . . . . . . Parts Stripped . | . . . . . . . . . . . Power Chain Reactions 4 | . . . . . . . . . 2 2 Missiles Intercepted . | . . . . . . . . . . . Alert | -11 -10 -9 -8 -8 -8 -8 -8 -6 -6 -5 ------- Run | Jun Mat Mat Mat Gar Sto Gar Rec Fac Gar Fac Peak Influence 1888 | 10 162 666 541 1362 821 1752 788 711 1888 1360 Initial 991 | . 6 68 234 231 663 533 788 580 497 991 Average 767 | 5 74 402 423 835 460 1318 423 522 1096 1192 Maximum Alert Level 5 | . . 2 2 4 3 5 3 3 5 4 Low Security (%) 9 | 100 100 13 . . 9 . . . . . Level 1 13 | . . 32 33 12 27 . 41 17 . . Level 2 32 | . . 53 66 23 47 5 56 78 16 . Level 3 14 | . . . . 32 15 19 1 3 34 15 Level 4 25 | . . . . 31 . 50 . . 38 84 Level 5 5 | . . . . . . 24 . . 11 . High Security . | . . . . . . . . . . . Max Security . | . . . . . . . . . . . Squads Dispatched 31 | . 2 4 1 . 3 . . 14 . 7 Investigation 4 | . . . 1 . . . . 2 . 1 Extermination 5 | . . . . . . . . 2 . 3 Reinforcement 12 | . 2 3 . . 1 . . 4 . 2 Assault 3 | . . 1 . . . . . 1 . 1 Garrison 7 | . . . . . 2 . . 5 . . Intercept . | . . . . . . . . . . . Searches Triggered 1 | . . . . . . . . 1 . . Construction Impeded 4 | . . 1 . . . . . 3 . . Haulers Reinforced 1 | . . . . . . . . . . 1 Active Scanning Responses . | . . . . . . . . . . . Cargo Convoy Interrupts 2 | . . . . . . . . 1 . 1 Stealth | -11 -10 -9 -8 -8 -8 -8 -8 -6 -6 -5 --------- Run | Jun Mat Mat Mat Gar Sto Gar Rec Fac Gar Fac Distress Signals 7 | . 1 . 2 . 3 . . 1 . . Communications Jammed 45 | . . . . . . . . . . 45 Distress Signals 43 | . . . . . . . . . . 43 Times Spotted 299 | . 17 38 20 35 24 39 2 45 41 38 Peak Tracking Total 10 | . 3 5 9 7 5 10 1 10 6 9 Tactical Retreats 7 | . . . . . . 1 . 2 2 2 Traps | -11 -10 -9 -8 -8 -8 -8 -8 -6 -6 -5 ------- Run | Jun Mat Mat Mat Gar Sto Gar Rec Fac Gar Fac Traps Triggered 23 | . 1 . 1 6 . 4 . 1 7 3 Indirectly . | . . . . . . . . . . . Trap Hack Attempts . | . . . . . . . . . . . Triggered . | . . . . . . . . . . . Disarmed . | . . . . . . . . . . . Reprogrammed 4 | . . . . . 4 . . . . . Reused . | . . . . . . . . . . . Traps Extracted . | . . . . . . . . . . . Installed . | . . . . . . . . . . . Triggered 2 | . . . . . . . . . . 2 Machines | -11 -10 -9 -8 -8 -8 -8 -8 -6 -6 -5 ---------- Run | Jun Mat Mat Mat Gar Sto Gar Rec Fac Gar Fac Machines Disabled 45 | . . 1 . 8 3 10 . 5 10 8 Max in Single Turn 2 | . . 1 . 1 1 1 . 2 1 2 Garrison Relay 17 | . . . . 5 . 6 . . 6 . Machines Repaired . | . . . . . . . . . . . Machines Sabotaged . | . . . . . . . . . . . Overloaded Fab Kills . | . . . . . . . . . . . Hacking | -11 -10 -9 -8 -8 -8 -8 -8 -6 -6 -5 --------- Run | Jun Mat Mat Mat Gar Sto Gar Rec Fac Gar Fac Machines Accessed 63 | . 5 8 3 3 12 4 13 9 3 3 Terminals 47 | . 4 8 2 3 11 4 6 5 3 1 Fabricators 3 | . . . . . . . . 1 . 2 Repair Stations . | . . . . . . . . . . . Recycling Units 8 | . 1 . . . . . 7 . . . Scanalyzers 1 | . . . . . . . . 1 . . Garrison Access 4 | . . . 1 . 1 . . 2 . . Total Hacks 200 | . 17 26 11 8 35 14 42 28 11 8 Successful 93 | . 6 13 4 1 22 5 19 14 4 5 Failed 106 | . 11 12 7 7 13 9 23 14 7 3 Catastrophic 24 | . . 2 1 1 . 1 10 4 4 1 Database Lockouts 1 | . . 1 . . . . . . . . Manual 125 | . 14 13 10 4 14 8 34 15 8 5 Terminals 178 | . 15 26 10 8 33 14 35 20 11 6 Fabricators 4 | . . . . . . . . 2 . 2 Repair Stations . | . . . . . . . . . . . Recycling Units 9 | . 2 . . . . . 7 . . . Scanalyzers 2 | . . . . . . . . 2 . . Garrison Access 7 | . . . 1 . 2 . . 4 . . Terminal Hacks 64 | . 4 11 1 1 20 4 10 7 3 3 Part Schematic 1 | . . . . . 1 . . . . . Robot Analysis 10 | . 3 2 . . 1 . 3 1 . . Prototype ID Bank 9 | . 1 3 . . 3 . 2 . . . Open Door 5 | . . . . . 4 1 . . . . Branch Access Points 1 | . . . . . . . . . . 1 Emergency Access Points 2 | . . . . . . 1 . . 1 . Terminal Index 3 | . . . 1 . . . 1 1 . . Garrison Index 1 | . . . . . 1 . . . . . Alert Level 8 | . . 2 . . 2 . 1 2 . 1 Unreport Threat 13 | . . 1 . . 4 1 3 2 1 1 Locate Traps 3 | . . 1 . . 2 . . . . . Reprogram Traps 1 | . . . . . 1 . . . . . Hauler Manifests 3 | . . 1 . . 1 . . 1 . . Zone Layout 1 | . . 1 . . . . . . . . Garrison Registry 1 | . . . . 1 . . . . . . Patrol Navigation 2 | . . . . . . 1 . . 1 . Fabricator Hacks 4 | . . . . . . . . 2 . 2 Network Status 2 | . . . . . . . . . . 2 Load Schematic 1 | . . . . . . . . 1 . . Build 1 | . . . . . . . . 1 . . Repair Station Hacks . | . . . . . . . . . . . Recycling Unit Hacks . | . . . . . . . . . . . Scanalyzer 2 | . . . . . . . . 2 . . Insert Component 1 | . . . . . . . . 1 . . Analyze 1 | . . . . . . . . 1 . . Garrison Access Hacks 3 | . . . 1 . 1 . . 1 . . Unlock Access 3 | . . . 1 . 1 . . 1 . . Unauthorized Hacks 20 | . 2 2 2 . 1 1 9 2 1 . Terminals 13 | . 2 2 2 . 1 1 2 2 1 . Botnet 13 | . 2 2 2 . 1 1 2 2 1 . Fabricators . | . . . . . . . . . . . Repair Stations . | . . . . . . . . . . . Recycling Units 7 | . . . . . . . 7 . . . Tunnel 7 | . . . . . . . 7 . . . Scanalyzers . | . . . . . . . . . . . Garrison Access . | . . . . . . . . . . . Data Cores Recovered . | . . . . . . . . . . . Used . | . . . . . . . . . . . Hacking Detections 40 | . 5 6 2 3 5 3 5 7 3 1 Full Trace Events 6 | . 1 . . 1 . . 1 2 1 . Feedback Events . | . . . . . . . . . . . Feedback Blocked . | . . . . . . . . . . . Robot Schematics Acquired . | . . . . . . . . . . . Robots Built . | . . . . . . . . . . . Authchips . | . . . . . . . . . . . Time . | . . . . . . . . . . . Total Robot Build Rating . | . . . . . . . . . . . Part Schematics Acquired 2 | . . . . . 1 . . 1 . . Parts Built 1 | . . . . . . . . 1 . . Authchips . | . . . . . . . . . . . Time 95 | . . . . . . . . 95 . . Total Part Build Rating 5 | . . . . . . . . 5 . . Parts Repaired . | . . . . . . . . . . . Time . | . . . . . . . . . . . Parts Recycled . | . . . . . . . . . . . Recycled Matter . | . . . . . . . . . . . Retrieved Matter . | . . . . . . . . . . . Retrieved Components . | . . . . . . . . . . . Parts Scanalyzed 1 | . . . . . . . . 1 . . Part Schematics Acquired 1 | . . . . . . . . 1 . . Parts Damaged . | . . . . . . . . . . . Bothacking | -11 -10 -9 -8 -8 -8 -8 -8 -6 -6 -5 ------------ Run | Jun Mat Mat Mat Gar Sto Gar Rec Fac Gar Fac Used RIF Installer . | . . . . . . . . . . . Robots Hacked . | . . . . . . . . . . . Non-combat . | . . . . . . . . . . . Combat . | . . . . . . . . . . . Robot Hacks Applied . | . . . . . . . . . . . Relay Couplers Released 30 | . . . . 10 . 11 . . 9 . Machine Destruction 28 | . . . . 9 . 10 . . 9 . Programmers 2 | . . . . 1 . 1 . . . . Fabnet Peak Effective % . | . . . . . . . . . . . Robots Rewired 7 | . . . . 4 . 3 . . . . Allies Hacked . | . . . . . . . . . . . Hacks Repelled . | . . . . . . . . . . . Allies | -11 -10 -9 -8 -8 -8 -8 -8 -6 -6 -5 -------- Run | Jun Mat Mat Mat Gar Sto Gar Rec Fac Gar Fac Total Allies 22 | . . . . 4 12 4 . . 2 . Largest Group 11 | . . . . 4 11 4 4 4 2 1 Highest-Rated Group 234 | . . . . 96 234 79 79 79 157 82 Highest-Rated Ally 95 | . . . . 24 31 31 31 31 95 82 Total Orders . | . . . . . . . . . . . Ally Attacks 214 | . . . . 35 78 43 13 16 24 5 Total Damage 4399 | . . . . 957 1143 641 152 147 1128 231 Kills 39 | . . . . 11 14 4 1 . 8 1 Allies Corrupted . | . . . . . . . . . . . Allies Melted . | . . . . . . . . . . . Intel | -11 -10 -9 -8 -8 -8 -8 -8 -6 -6 -5 ------- Run | Jun Mat Mat Mat Gar Sto Gar Rec Fac Gar Fac Robot Analysis Total 10 | . 3 2 . . 1 . 3 1 . . Derelict Logs Recovered . | . . . . . . . . . . . Drone Launches . | . . . . . . . . . . . Drone Recoveries . | . . . . . . . . . . . Exploration | -11 -10 -9 -8 -8 -8 -8 -8 -6 -6 -5 ------------- Run | Jun Mat Mat Mat Gar Sto Gar Rec Fac Gar Fac Turns Passed 10935 | 62 694 1202 433 1278 761 1636 576 1704 1315 1274 Spaces Moved 7428 | 38 572 818 250 775 499 1161 514 1179 820 802 Core . | . . . . . . . . . . . Treads . | . . . . . . . . . . . Legs 1 | 1 . . . . . . . . . . Wheels 7427 | 37 572 818 250 775 499 1161 514 1179 820 802 Hover . | . . . . . . . . . . . Flight . | . . . . . . . . . . . Fastest Speed 90 | 90 90 90 105 115 105 105 105 105 120 120 Average Speed 108 | 97 90 95 106 115 112 105 105 106 120 122 Slowest Speed 150 | 120 90 105 115 115 115 120 105 120 150 135 Overloaded Moves . | . . . . . . . . . . . Propulsion Burnouts . | . . . . . . . . . . . Robots Hopped 2 | . . . . . 2 . . . . . Cave-ins Triggered 1 | . . . . . . . . . . 1 Exploration Rate (%) 64 | 3 91 83 31 70 91 91 98 32 97 23 Regions Visited 10 Branch Regions 2 Pre-discovered Areas 7 | . . . . . . . 7 . . . Known Exits Taken 3 | . . . 1 . 1 . . 1 . . Unknown Exits Taken 4 | 1 1 1 . . . . 1 . . . Scrap Searched . | . . . . . . . . . . . Spaces Dug 98 | . . 1 2 3 4 5 . 35 18 30 Terrain Destroyed 290 | . . 14 2 3 6 26 . 93 70 76 Melee 15 | . . 1 2 3 4 5 . . . . Projectile 155 | . . . . . 2 . . 46 55 52 AOE 120 | . . 13 . . . 21 . 47 15 24 Terrain Rammed . | . . . . . . . . . . . Walls Destroyed . | . . . . . . . . . . . Machines Disabled . | . . . . . . . . . . . Actions | -11 -10 -9 -8 -8 -8 -8 -8 -6 -6 -5 --------- Run | Jun Mat Mat Mat Gar Sto Gar Rec Fac Gar Fac Total 9256 | 49 668 1101 342 1030 628 1412 542 1467 1035 982 Wait 598 | 1 35 172 19 47 46 58 19 106 45 50 Move 7413 | 37 571 817 249 773 495 1160 513 1178 819 801 Hop 1 | . . . . . 1 . . . . . Pick Up 19 | . 2 2 . . 1 1 1 5 1 6 Fast Attach 77 | 4 4 9 6 2 11 3 2 23 10 3 Attach 5 | . . 1 . . . . . 1 . 3 Detach 5 | . . 1 1 . . . . 2 . 1 Swap 59 | . 2 9 4 4 9 15 . 3 . 13 Drop 81 | 1 3 9 5 3 15 1 3 25 8 8 Fire 522 | 6 38 59 31 58 29 69 4 98 69 61 Melee 38 | . . 1 2 6 6 23 . . . . Ram . | . . . . . . . . . . . Kick . | . . . . . . . . . . . Crush . | . . . . . . . . . . . Escape Stasis 121 | . . . . 48 . 32 . . 40 1 Rewire 56 | . . . . 40 . 15 . . 1 . Trap . | . . . . . . . . . . . Miscellaneous 261 | . 13 21 25 49 15 35 . 26 42 35 Route ------- -11/Junkyard -10/Materials (discovered 4 exits: *Mat x3 / [*Min]) -9/Materials (discovered 4 exits: *Mat x2 / [*Min x2]) -8/Materials (discovered 2 exits: *Sto / Gar) -8/Garrison (discovered 3 exits: *Sto x3) -8/Storage -8/Garrison (discovered 3 exits: *Rec x3) -8/Recycling -6/Factory (discovered 3 exits: *Fac x2 / Gar) -6/Garrison (discovered 3 exits: *Fac x3) -5/Factory (discovered 7 exits: *Fac x3 / Upp x2 / Ext x2) History --------- Turn | Location | Event 1 | -11/Junkyard | Discovered new exit (range 1) 6 | -11/Junkyard | Upgraded with Weapon slot (x1) 50 | -11/Junkyard | Upgraded with Propulsion slot (x1) 63 | -11/Junkyard | Entered Materials 199 | -10/Materials | Discovered new exit (range 16) 290 | -10/Materials | Upgraded with Utility slot (x1) 297 | -10/Materials | Upgraded with Weapon slot (x1) 583 | -10/Materials | Discovered new exit (range 15) 651 | -10/Materials | Discovered new exit (range 7) 671 | -10/Materials | Discovered new exit (range 7) 757 | -10/Materials | Entered another Materials area 759 | -9/Materials | Reached level 2 824 | -9/Materials | Reached level 3 866 | -9/Materials | Central database locked down 990 | -9/Materials | Discovered new exit (range 16) 1181 | -9/Materials | Reached level 4 1205 | -9/Materials | Discovered new exit (range 8) 1359 | -9/Materials | Discovered new exit (range 13) 1475 | -9/Materials | Upgraded with Power slot (x1) 1475 | -9/Materials | Upgraded with Utility slot (x1) 1496 | -9/Materials | Discovered new exit (range 15) 1519 | -9/Materials | Reached level 5 1595 | -9/Materials | Upgraded with Utility slot (x1) 1957 | -9/Materials | First assault squad dispatched 1959 | -9/Materials | Entered another Materials area 1961 | -8/Materials | Reached level 6 2006 | -8/Materials | Build established: Gunner 2032 | -8/Materials | Reached level 7 2051 | -8/Materials | Core integrity fell below 50% 2094 | -8/Materials | Destroyed 7 combat bots 2217 | -8/Materials | Upgraded with Utility slot (x1) 2310 | -8/Materials | Build established: Hacker-Gunner 2374 | -8/Materials | Discovered new exit (range 16) 2386 | -8/Materials | Identified exit to Garrison 2392 | -8/Materials | Entered Garrison 2394 | -8/Garrison | Reached level 8 2439 | -8/Garrison | Triggered checkpoint 2524 | -8/Garrison | Triggered checkpoint 2543 | -8/Garrison | Garrison Relay disabled 2682 | -8/Garrison | Triggered checkpoint 2691 | -8/Garrison | Reached level 9 2711 | -8/Garrison | Garrison Relay disabled 2775 | -8/Garrison | Triggered checkpoint 2776 | -8/Garrison | Triggered checkpoint 2848 | -8/Garrison | Reached level 10 2861 | -8/Garrison | Discovered new exit (range 12) 3030 | -8/Garrison | Triggered checkpoint 3077 | -8/Garrison | Garrison Relay disabled 3117 | -8/Garrison | Discovered new exit (range 80) 3117 | -8/Garrison | Discovered new exit (range 15) 3117 | -8/Garrison | Discovered new exit (range 48) 3168 | -8/Garrison | Triggered checkpoint 3170 | -8/Garrison | Reached level 11 3254 | -8/Garrison | Triggered checkpoint 3352 | -8/Garrison | Garrison Relay disabled 3430 | -8/Garrison | Attempted to access garrison exit controls, blocked by remote lockdown 3553 | -8/Garrison | Garrison Relay disabled 3643 | -8/Garrison | Build established: Hacker-Mutant 3670 | -8/Garrison | Entered Storage 3672 | -8/Storage | Reached level 12 3870 | -8/Storage | Upgraded with Weapon slot (x1) 3995 | -8/Storage | Assisted by bots powering up and referring to "LRC-V3" 4228 | -8/Storage | Allied Derelicts emerged from ambush trap array 4242 | -8/Storage | Reached level 13 4308 | -8/Storage | Garrison activated, responded to threat 4417 | -8/Storage | Identified exit to Garrison 4431 | -8/Storage | Entered Garrison 4431 | -8/Garrison | Accompanied by 3 allies 4469 | -8/Garrison | Build established: Hacker-Gunner 4489 | -8/Garrison | Triggered checkpoint 4494 | -8/Garrison | Triggered checkpoint 4521 | -8/Garrison | Garrison Relay disabled 4544 | -8/Garrison | Upgraded with Power slot (x1) 4560 | -8/Garrison | Destroyed 7 combat bots 4648 | -8/Garrison | Triggered checkpoint 4660 | -8/Garrison | Reached level 14 4671 | -8/Garrison | Garrison Relay disabled 4718 | -8/Garrison | Discovered new exit (range 12) 4874 | -8/Garrison | Destroyed 11 combat bots 4926 | -8/Garrison | Triggered checkpoint 4999 | -8/Garrison | Discovered new exit (range 11) 5060 | -8/Garrison | Triggered checkpoint 5143 | -8/Garrison | Upgraded with Propulsion slot (x1) 5180 | -8/Garrison | Triggered checkpoint 5218 | -8/Garrison | Garrison Relay disabled 5368 | -8/Garrison | Triggered checkpoint 5417 | -8/Garrison | Garrison Relay disabled 5452 | -8/Garrison | Discovered new exit (range 12) 5513 | -8/Garrison | Rescued a captive Derelict 5661 | -8/Garrison | Garrison Relay disabled 5677 | -8/Garrison | Triggered checkpoint 5703 | -8/Garrison | Triggered checkpoint 5712 | -8/Garrison | Garrison Relay disabled 5999 | -8/Garrison | Build established: Hacker-Mutant 6067 | -8/Garrison | Entered Recycling 6067 | -8/Recycling | Accompanied by 4 allies 6224 | -8/Recycling | Discovered new exit (range 7) 6396 | -8/Recycling | Build established: Hacker-Gunner 6437 | -8/Recycling | Reached level 15 6643 | -8/Recycling | Entered Factory 6643 | -6/Factory | Accompanied by 4 allies 6645 | -6/Factory | Reached level 16 6761 | -6/Factory | Upgraded with Utility slot (x1) 6993 | -6/Factory | Search patrols dispatched 7064 | -6/Factory | Upgraded with Utility slot (x1) 7105 | -6/Factory | Upgraded with Utility slot (x1) 7210 | -6/Factory | Garrison activated, responded to threat 7298 | -6/Factory | Fabricated Hvy. Insulated Plating (x1) 7435 | -6/Factory | Discovered new exit (range 12) 7541 | -6/Factory | Discovered new exit (range 4) 7552 | -6/Factory | Reached level 17 8043 | -6/Factory | First assault squad dispatched 8156 | -6/Factory | Garrison activated, responded to threat 8159 | -6/Factory | Cargo convoy interrupted 8212 | -6/Factory | Reached level 18 8270 | -6/Factory | Core integrity fell below 50% 8272 | -6/Factory | Garrison activated, responded to threat 8302 | -6/Factory | Destroyed 13 combat bots 8346 | -6/Factory | Identified exit to Garrison 8347 | -6/Factory | Entered Garrison 8404 | -6/Garrison | Triggered checkpoint 8443 | -6/Garrison | Garrison Relay disabled 8538 | -6/Garrison | Reached level 19 8538 | -6/Garrison | Triggered checkpoint 8550 | -6/Garrison | Spotted B-75 Beast 8582 | -6/Garrison | Destroyed 7 combat bots 8754 | -6/Garrison | Discovered new exit (range 11) 8828 | -6/Garrison | Triggered checkpoint 8938 | -6/Garrison | Found Hvy. Insulated Plating 8959 | -6/Garrison | Build established: Hacker-Tank 8962 | -6/Garrison | Garrison Relay disabled 9161 | -6/Garrison | Discovered new exit (range 14) 9166 | -6/Garrison | Found embedded Infiltrators 9204 | -6/Garrison | Triggered checkpoint 9221 | -6/Garrison | Garrison Relay disabled 9278 | -6/Garrison | Garrison Relay disabled 9280 | -6/Garrison | Garrison Relay disabled 9372 | -6/Garrison | Triggered checkpoint 9374 | -6/Garrison | Triggered checkpoint 9378 | -6/Garrison | Destroyed B-75 Beast 9506 | -6/Garrison | Discovered new exit (range 10) 9511 | -6/Garrison | Triggered checkpoint 9513 | -6/Garrison | Reached level 20 9529 | -6/Garrison | Garrison Relay disabled 9610 | -6/Garrison | Found Relay Coupler [Proto] 9662 | -6/Garrison | Entered Factory 9662 | -5/Factory | Accompanied by 1 ally 9716 | -5/Factory | Discovered new exit (range 11) 9785 | -5/Factory | Reached level 21 9793 | -5/Factory | Upgraded with Utility slot (x1) 9794 | -5/Factory | Identified exit to Factory 9962 | -5/Factory | First assault squad dispatched 10348 | -5/Factory | Crushed by falling debris 10600 | -5/Factory | Discovered exit to Factory (range 16) 10672 | -5/Factory | Cargo convoy interrupted 10673 | -5/Factory | Identified exit to Upper Caves 10673 | -5/Factory | Identified exit to Extension 10863 | -5/Factory | Discovered exit to Factory (range 14) 10921 | -5/Factory | Reached level 22 10936 | -5/Factory | Self-destructed Last Messages --------------- 10913_ K-01 Serf collects debris. 10913_ Slug penetrates Door. 10915_ Slug penetrates Wall. 10919_ H-71 Marshal call for reinforcements jammed. 10919_ Penetrated by Slug. 10919_ Weapon Cycler blasted off. 10921_ A-27 Freighter exits level. 10921_ Slug penetrates X-72 Disruptor. 10921_ Reached level 22. 10921_ X-72 Disruptor destroyed. 10921_ X-72 Disruptor knocked back. 10924_ I-47 Archangel exits level. 10925_ Acquired 9 matter. 10929_ Slug penetrates X-67 Chaingunner. 10929_ X-67 Chaingunner knocked back. 10932_ I-47 Archangel distress signal jammed. 10932_ Penetrated by Slug. 10932_ Slug penetrates H-66 Slayer. 10933_ I-47 Archangel distress signal jammed. 10935_ Penetrated by Slug. Map ----- +----------------------------------------------------+ | ???????????????#?#??????##?###??#?##?####???# | | ??????????????????????????#?#?????##???####?# | | ??????????????????????#?????##????#??###?#?## | | ??????????????????????#?###########?####?#?##[ | | ????????????????????#???# ####??##??# | | ??????????????#?####?#??# #??#?####?# | | ?????????????#????####### """ """ #??####???# | | ??????????????###??###### """ """ ###??########+# | | ???????????????##?#?#?### """ """ #??#?# # | | ??????????#?##??###????## ###### """ + | | ????????#?#????######?### ###### """ # | | ???????#???#?#?#??#?#???# = ! + + """ # # | | ?????????#?#??#??###??#?#####+#;######## # # | | ?????????#??###?#????#??## #####?#* % # # | | ????????#????#??#?###??### ####?######+## # | | ?????#??####?#??###????### ####??####? ? # | | ?????#??#?##?##??#?##??#?# ####?###??? # | | ????####???#?#?########### ##??#? ? # # | | ??????#??##?##?# # ####?# # ? ? | | ??????????##???# # #;#### #? ? | | ???????#???##### # H < #? ? ? # | | ???????#?##?#### ; #?? ? ? ? | | ?????#?###????## i x ! #? # ? | | ?????###?#???### %x=%* % # #? # | | ??????#????#??## h; # ? # # | | ????#???#??#???# @# # ? ? ? # | | ???????#???###?##;#;;;#### #####??? ?? | | ????##??#???????#?# ?? ###?#?????? | | ????????##??#?#??## ?? ?? #?##???? ? | | ????????##??#??#??# ? ##??#?+##?# | | ?????????????? ?? ?? #? ? ?? | | ??????? ???? "?""?# ? ? #? ? ????? | | ??????? ???? ?"""?????? ######### #??"""????? | | ?????? ??????"""??? ? # ??? ?? "% #?"??"????? | | ??????? ??""?""?" # ? ? "??? # " #?"?????? | | ??????? """? "?"? ? ??"?? ??#? #?????????? | | ??????????"? ?""??#?? #? ??? ? ????????? | | ????????? ?????? ?? ??# ?? ?? ????# ????????? | | ??????????????? ????????# ?"?""???? ??????????? | | ???????????? ?? ??# ??# ??"?" #???????????????? | | ???????????? ? ??#?? ??#?"???? ????????????????? | | ????????????????? ? ?? ? ??#???????????????? | | ??????????????????????? ? "?""???#??????????????? | | ??????????????????????? #????"? ????????????????? | | ??????????????????#?????????? ??????????????????? | | ????????????????????????????????????????????????? | | ????????????????????????????????????????????????? | | ????????????????????????????????????????????????? | | ????????????????????????????????????????????????? | | ????????????????????????????????????????????????? | +----------------------------------------------------+ Best States ------------- Heat Dissipation 115 Energy Generation 63 Energy Capacity 795 Matter Stores 300 Matter Capacity 300 Sight Range 17 Terrain Scan Range 20 Terrain Scan Density 110 Jamming Range 12 Armor Coverage 600 Resistance: KI 20 Resistance: TH 20 Resistance: EM 30 Weapon Cycling 15 Evasion (%) 42 Targeting Accuracy 6 Particle Charging 20 Offensive Hacking 20 Defensive Hacking 20 Item Schematics ----------------- Hvy. Insulated Plating | -8/Storage | Hacked Adv. Signal Interpreter | -6/Factory | Scanalyzed Robot Schematics ------------------ None Fabricated ------------ Hvy. Insulated Plating | x1 | -6/Factory Alien Tech Used ----------------- None Achievements -------------- None Challenges ------------ None RPGLIKE | -11 -10 -9 -8 -8 -8 -8 -8 -6 -6 -5 --------- Run | Jun Mat Mat Mat Gar Sto Gar Rec Fac Gar Fac Levels Raised 21 | . . 4 2 4 2 1 1 3 2 2 XP Earned 34516 | 3000 1390 5986 2945 5819 2787 1622 537 5036 2611 2783 XP Spent 29100 | 1050 1950 3500 2420 3300 2290 2590 . 7200 1200 3600 Upgrades 48 | 3 4 7 5 4 5 5 . 9 4 2 Power Slot 2 | . . 1 . . . 1 . . . . Propulsion Slot 2 | 1 . . . . . 1 . . . . Utility Slot 8 | . 1 2 1 . . . . 3 . 1 Weapon Slot 3 | 1 1 . . . 1 . . . . . Heat Dissipation 15 | . . . 2 . 1 2 . 6 4 . Inventory Capacity 4 | . 1 1 . . . 1 . . . 1 Sight Range 1 | . . . . . 1 . . . . . Terrain Scan Density 1 | 1 . . . . . . . . . . Ranged Accuracy 2 | . 1 . . . 1 . . . . . Hack Attack % 4 | . . 1 1 2 . . . . . . Hack Defense % 4 | . . 1 1 2 . . . . . . TH Damage % 2 | . . 1 . . 1 . . . . . Protomatter Created 3059 | . 91 241 218 413 265 499 54 418 335 525 Integrity Restored 5115 | . 271 382 506 969 302 693 . 494 847 651 Core 3795 | . 244 329 427 664 191 468 . 371 640 461 Parts 1320 | . 27 53 79 305 111 225 . 123 207 190 Protomatter Decayed 1649 | . . 105 47 254 268 327 54 229 106 259 Game ------ Seed PhasingSalvageSword Manual? 0 Play Time 02:29:57 Cumulative 512.2 hours Start 2023.09.15 @ 21:19:49 End 2023.09.20 @ 23:31:30 Sessions 13 Manual Loads 0 Difficulty Rogue Special Mode Winter2019/RPGLIKE Game No. 119 Rogue 79 Adventurer 4 Explorer 36 Win Type - Total 37 Types 17/6/4/2/2/3/2/0/1 Lore% 88 Gallery% 89 Achievement% 89 Wizard Run 0 Options --------- ASCII 0 Keyboard 1 Movement Vi Keybinds 0 Fullscreen 2 Font 24/Proggy Map View 76x50 Tactical HUD 1 Map Filters NONE Filters NONE Steam 1 RUN: 8e405315-6643-426c-9c30-7c58cd6b5bf9